[Event "*** SCC Grand Prix: Titled Tuesday Blitz"]
[Site "Chess.com"]
[Date "2020.06.09"]
[Round "5"]
[White "GustavoJuarezF"]
[Black "Kopytkin"]
[Result "0-1"]
[WhiteElo "1982"]
[BlackElo "2338"]
[TimeControl "180+1"]
[EndTime "9:56:34 PDT"]
[Termination "Kopytkin won on time"]

1. e4 {[%clk 0:03:00.9]} 1... c6 {[%clk 0:02:59.1]} 2. Nc3 {[%clk 0:02:58.6]}
2... d5 {[%clk 0:02:59.3]} 3. Nf3 {[%clk 0:02:58.2]} 3... g6 {[%clk 0:02:59.7]}
4. d3 {[%clk 0:02:55.1]} 4... Bg7 {[%clk 0:02:57.4]} 5. g3 {[%clk 0:02:55.1]}
5... e5 {[%clk 0:02:57]} 6. Bg2 {[%clk 0:02:53.5]} 6... Ne7 {[%clk 0:02:57.2]}
7. O-O {[%clk 0:02:52.6]} 7... O-O {[%clk 0:02:57.3]} 8. exd5 {[%clk 0:02:42.8]}
8... Nxd5 {[%clk 0:02:51.9]} 9. Bd2 {[%clk 0:02:37.4]} 9... Re8 {[%clk
0:02:30.1]} 10. h3 {[%clk 0:02:35.7]} 10... Nd7 {[%clk 0:02:22.5]} 11. Re1
{[%clk 0:02:35.7]} 11... N7b6 {[%clk 0:02:19]} 12. a4 {[%clk 0:02:14.3]} 12...
f6 {[%clk 0:02:13.3]} 13. a5 {[%clk 0:02:12.9]} 13... Nxc3 {[%clk 0:02:13.1]}
14. bxc3 {[%clk 0:02:04.4]} 14... Nd5 {[%clk 0:02:07.3]} 15. c4 {[%clk
0:02:03.6]} 15... Nc7 {[%clk 0:02:07.4]} 16. Bc3 {[%clk 0:01:57.8]} 16... Bf5
{[%clk 0:02:05.8]} 17. Nd2 {[%clk 0:01:56.4]} 17... Qd7 {[%clk 0:02:04.5]} 18.
Kh2 {[%clk 0:01:54.8]} 18... Rad8 {[%clk 0:02:04]} 19. g4 {[%clk 0:01:47.2]}
19... Be6 {[%clk 0:02:03.1]} 20. Ne4 {[%clk 0:01:44.5]} 20... Na6 {[%clk
0:02:02.2]} 21. Qb1 {[%clk 0:01:28.6]} 21... h6 {[%clk 0:01:12.7]} 22. Qb2
{[%clk 0:01:26]} 22... Qc7 {[%clk 0:01:00.4]} 23. Reb1 {[%clk 0:01:14.6]} 23...
Rd7 {[%clk 0:01:00.1]} 24. Qa3 {[%clk 0:01:09.8]} 24... f5 {[%clk 0:00:57.1]}
25. Nc5 {[%clk 0:01:06.7]} 25... Nxc5 {[%clk 0:00:56.1]} 26. Qxc5 {[%clk
0:01:04]} 26... e4+ {[%clk 0:00:53.7]} 27. Kg1 {[%clk 0:00:53.3]} 27... Bxc3
{[%clk 0:00:53.6]} 28. gxf5 {[%clk 0:00:52.8]} 28... gxf5 {[%clk 0:00:48]} 29.
dxe4 {[%clk 0:00:52.1]} 29... Bd4 {[%clk 0:00:34.4]} 30. Qa3 {[%clk 0:00:40.5]}
30... Rg7 {[%clk 0:00:33.7]} 31. Kh1 {[%clk 0:00:08.4]} 31... fxe4 {[%clk
0:00:25.3]} 32. Rg1 {[%clk 0:00:02.8]} 32... Bxa1 {[%clk 0:00:21.1]} 33. Qxa1
{[%clk 0:00:01.6]} 33... Bf5 {[%clk 0:00:13.9]} 0-1

[Event "*** SCC Grand Prix: Titled Tuesday Blitz"]
[Site "Chess.com"]
[Date "2020.06.09"]
[Round "5"]
[White "ChessyInstinct"]
[Black "1f3_2g41-0"]
[Result "1-0"]
[WhiteElo "2395"]
[BlackElo "2208"]
[TimeControl "180+1"]
[EndTime "9:56:35 PDT"]
[Termination "ChessyInstinct won by checkmate"]

1. d4 {[%clk 0:03:00.9]} 1... Nf6 {[%clk 0:02:53]} 2. c4 {[%clk 0:03:01.4]} 2...
g6 {[%clk 0:02:52.4]} 3. Nc3 {[%clk 0:03:01.3]} 3... d5 {[%clk 0:02:51.6]} 4.
Bg5 {[%clk 0:02:57.7]} 4... Ne4 {[%clk 0:02:50.8]} 5. Bf4 {[%clk 0:02:56.1]}
5... Nxc3 {[%clk 0:02:47.1]} 6. bxc3 {[%clk 0:02:57]} 6... Bg7 {[%clk
0:02:47.3]} 7. Nf3 {[%clk 0:02:56.9]} 7... O-O {[%clk 0:02:46.7]} 8. e3 {[%clk
0:02:56.7]} 8... c5 {[%clk 0:02:46.1]} 9. cxd5 {[%clk 0:02:56.8]} 9... Qxd5
{[%clk 0:02:46.5]} 10. Be2 {[%clk 0:02:57.5]} 10... Nc6 {[%clk 0:02:46]} 11. O-O
{[%clk 0:02:56.6]} 11... cxd4 {[%clk 0:02:45.6]} 12. cxd4 {[%clk 0:02:57.5]}
12... Bg4 {[%clk 0:02:45.3]} 13. h3 {[%clk 0:02:47.4]} 13... Bf5 {[%clk
0:02:43.6]} 14. Rc1 {[%clk 0:02:42.2]} 14... Rac8 {[%clk 0:02:40.1]} 15. Bc4
{[%clk 0:02:41.1]} 15... Qd7 {[%clk 0:02:38.2]} 16. Qe2 {[%clk 0:02:21.5]} 16...
Rfd8 {[%clk 0:02:35]} 17. Ng5 {[%clk 0:02:16]} 17... Rf8 {[%clk 0:02:16.2]} 18.
g4 {[%clk 0:01:45.1]} 18... Be6 {[%clk 0:01:31.7]} 19. Nxe6 {[%clk 0:01:43.6]}
19... fxe6 {[%clk 0:01:32.6]} 20. Bg3 {[%clk 0:01:42.6]} 20... Na5 {[%clk
0:01:28.2]} 21. Bb5 {[%clk 0:01:39.5]} 21... Qd5 {[%clk 0:01:27.1]} 22. Ba4
{[%clk 0:00:51.6]} 22... Kh8 {[%clk 0:01:17.8]} 23. Qb5 {[%clk 0:00:48.6]} 23...
a6 {[%clk 0:01:04.3]} 24. Qxd5 {[%clk 0:00:33.1]} 24... exd5 {[%clk 0:01:05.2]}
25. Bd7 {[%clk 0:00:27.7]} 25... Rc4 {[%clk 0:01:01]} 26. Be6 {[%clk 0:00:20.2]}
26... b5 {[%clk 0:00:18.1]} 27. Bxd5 {[%clk 0:00:18.8]} 27... Ra4 {[%clk
0:00:18.1]} 28. Rc7 {[%clk 0:00:12.8]} 28... Rd8 {[%clk 0:00:17.9]} 29. Be6
{[%clk 0:00:10.7]} 29... Nc4 {[%clk 0:00:17]} 30. Rxe7 {[%clk 0:00:06.7]} 30...
Rxa2 {[%clk 0:00:12.9]} 31. Ra7 {[%clk 0:00:05.7]} 31... Nd2 {[%clk 0:00:10.4]}
32. Bxa2 {[%clk 0:00:04.9]} 32... Nxf1 {[%clk 0:00:09.6]} 33. Kxf1 {[%clk
0:00:05.8]} 33... Rc8 {[%clk 0:00:09.9]} 34. Be6 {[%clk 0:00:05.1]} 34... Rc1+
{[%clk 0:00:10.2]} 35. Kg2 {[%clk 0:00:05.6]} 35... Bf8 {[%clk 0:00:10.4]} 36.
Be5+ {[%clk 0:00:05.7]} 36... Bg7 {[%clk 0:00:10.3]} 37. Bxg7# {[%clk
0:00:06.3]} 1-0

[Event "*** SCC Grand Prix: Titled Tuesday Blitz"]
[Site "Chess.com"]
[Date "2020.06.09"]
[Round "5"]
[White "fm24601"]
[Black "MartinMatthiesen"]
[Result "0-1"]
[WhiteElo "2524"]
[BlackElo "2379"]
[TimeControl "180+1"]
[EndTime "9:56:36 PDT"]
[Termination "MartinMatthiesen won on time"]

1. e4 {[%clk 0:02:59.4]} 1... c5 {[%clk 0:02:59.2]} 2. Nf3 {[%clk 0:02:59.1]}
2... d6 {[%clk 0:02:57]} 3. Bb5+ {[%clk 0:02:59.2]} 3... Bd7 {[%clk 0:02:55.9]}
4. Bxd7+ {[%clk 0:02:58.4]} 4... Nxd7 {[%clk 0:02:55.4]} 5. O-O {[%clk
0:02:58.5]} 5... Ngf6 {[%clk 0:02:55.5]} 6. Re1 {[%clk 0:02:58.2]} 6... e6
{[%clk 0:02:54.4]} 7. d4 {[%clk 0:02:54.8]} 7... cxd4 {[%clk 0:02:52.5]} 8. Qxd4
{[%clk 0:02:55.7]} 8... Be7 {[%clk 0:02:50.9]} 9. c4 {[%clk 0:02:55.7]} 9... O-O
{[%clk 0:02:50]} 10. Nc3 {[%clk 0:02:55.3]} 10... a6 {[%clk 0:02:49.2]} 11. b3
{[%clk 0:02:55.2]} 11... Qa5 {[%clk 0:02:44]} 12. Bb2 {[%clk 0:02:53.3]} 12...
Rac8 {[%clk 0:02:38.9]} 13. Qd2 {[%clk 0:02:43.8]} 13... Qh5 {[%clk 0:02:33.8]}
14. a4 {[%clk 0:02:41]} 14... Rfd8 {[%clk 0:02:17.3]} 15. Rad1 {[%clk
0:02:39.9]} 15... Ng4 {[%clk 0:01:58.4]} 16. h3 {[%clk 0:02:36.9]} 16... Nge5
{[%clk 0:01:57.6]} 17. Nxe5 {[%clk 0:01:55.9]} 17... dxe5 {[%clk 0:01:51.2]} 18.
Qc2 {[%clk 0:01:42.9]} 18... Bb4 {[%clk 0:01:46.5]} 19. Rf1 {[%clk 0:01:12]}
19... Qg5 {[%clk 0:01:39.8]} 20. Bc1 {[%clk 0:00:59.9]} 20... Qg6 {[%clk
0:01:37.8]} 21. Na2 {[%clk 0:00:57.2]} 21... Bc5 {[%clk 0:01:36]} 22. Nc3 {[%clk
0:00:45.8]} 22... Bd4 {[%clk 0:01:28.7]} 23. Be3 {[%clk 0:00:34.5]} 23... Bxe3
{[%clk 0:01:24.3]} 24. fxe3 {[%clk 0:00:34.6]} 24... a5 {[%clk 0:01:08.5]} 25.
Qd3 {[%clk 0:00:22.8]} 25... Qg5 {[%clk 0:01:04.4]} 26. Nb5 {[%clk 0:00:14.7]}
26... Nc5 {[%clk 0:01:03]} 27. Qc3 {[%clk 0:00:14.6]} 27... Nxe4 {[%clk
0:01:00.5]} 28. Rxd8+ {[%clk 0:00:12.5]} 28... Rxd8 {[%clk 0:00:59.7]} 29. Qxa5
{[%clk 0:00:13.4]} 29... Ng3 {[%clk 0:00:57.8]} 30. Re1 {[%clk 0:00:11.9]} 30...
h5 {[%clk 0:00:48.2]} 31. Qc3 {[%clk 0:00:12.1]} 31... e4 {[%clk 0:00:46.6]} 32.
Nd4 {[%clk 0:00:10.6]} 32... e5 {[%clk 0:00:44.6]} 33. Nc2 {[%clk 0:00:09.8]}
33... Rd3 {[%clk 0:00:43.5]} 34. Qb4 {[%clk 0:00:10.3]} 34... Nf5 {[%clk
0:00:40.9]} 35. c5 {[%clk 0:00:09.5]} 35... Qh4 {[%clk 0:00:34]} 36. Qxe4 {[%clk
0:00:03.9]} 36... Qxe4 {[%clk 0:00:32.5]} 0-1

[Event "*** SCC Grand Prix: Titled Tuesday Blitz"]
[Site "Chess.com"]
[Date "2020.06.09"]
[Round "5"]
[White "Kolle05"]
[Black "CzechmVIII"]
[Result "0-1"]
[WhiteElo "2359"]
[BlackElo "2179"]
[TimeControl "180+1"]
[EndTime "9:56:36 PDT"]
[Termination "CzechmVIII won on time"]

1. e4 {[%clk 0:03:00.9]} 1... c5 {[%clk 0:02:59.2]} 2. Nf3 {[%clk 0:03:00.6]}
2... d6 {[%clk 0:02:59.4]} 3. Bb5+ {[%clk 0:03:00]} 3... Nd7 {[%clk 0:02:58.7]}
4. O-O {[%clk 0:02:59.3]} 4... a6 {[%clk 0:02:58.5]} 5. Bd3 {[%clk 0:02:59.1]}
5... Ngf6 {[%clk 0:02:48.5]} 6. Re1 {[%clk 0:02:58.3]} 6... e6 {[%clk
0:02:47.1]} 7. c3 {[%clk 0:02:58.1]} 7... b5 {[%clk 0:02:45.1]} 8. Bc2 {[%clk
0:02:57.2]} 8... c4 {[%clk 0:02:41.3]} 9. d4 {[%clk 0:02:56.5]} 9... cxd3 {[%clk
0:02:40.8]} 10. Qxd3 {[%clk 0:02:55.4]} 10... Bb7 {[%clk 0:02:40.9]} 11. a4
{[%clk 0:02:54.9]} 11... Nc5 {[%clk 0:02:16.8]} 12. Qe2 {[%clk 0:02:54.5]} 12...
bxa4 {[%clk 0:02:13.6]} 13. Be3 {[%clk 0:02:17.9]} 13... Ncxe4 {[%clk
0:01:47.8]} 14. Bxa4+ {[%clk 0:02:12.8]} 14... Nd7 {[%clk 0:01:47.7]} 15. Nbd2
{[%clk 0:02:06.6]} 15... Nxd2 {[%clk 0:01:43.9]} 16. Nxd2 {[%clk 0:02:01]} 16...
Be7 {[%clk 0:01:40]} 17. Nc4 {[%clk 0:01:52.1]} 17... O-O {[%clk 0:01:34.5]} 18.
Qg4 {[%clk 0:01:48.2]} 18... Ne5 {[%clk 0:01:18.4]} 19. Nxe5 {[%clk 0:01:45.7]}
19... dxe5 {[%clk 0:01:18.8]} 20. Red1 {[%clk 0:01:44.3]} 20... Qc8 {[%clk
0:01:09.7]} 21. Rd7 {[%clk 0:01:05.5]} 21... Bf6 {[%clk 0:01:04.3]} 22. Rad1
{[%clk 0:01:01.6]} 22... Bc6 {[%clk 0:00:58.4]} 23. Bxc6 {[%clk 0:01:01.3]}
23... Qxc6 {[%clk 0:00:58.5]} 24. Bg5 {[%clk 0:01:02.2]} 24... Bxg5 {[%clk
0:00:50.5]} 25. Qxg5 {[%clk 0:01:03.1]} 25... Rab8 {[%clk 0:00:50.5]} 26. Qxe5
{[%clk 0:00:58.5]} 26... Rxb2 {[%clk 0:00:45.1]} 27. Rd8 {[%clk 0:00:55.4]}
27... Re8 {[%clk 0:00:33.5]} 28. Qc5 {[%clk 0:00:33.4]} 28... Qa4 {[%clk
0:00:31.9]} 29. Qe7 {[%clk 0:00:30.4]} 29... Rb8 {[%clk 0:00:26.5]} 30. Rxe8+
{[%clk 0:00:06.4]} 30... Qxe8 {[%clk 0:00:22.3]} 31. Qa7 {[%clk 0:00:04.5]}
31... Ra8 {[%clk 0:00:21.7]} 32. Qb6 {[%clk 0:00:03.5]} 32... h6 {[%clk
0:00:20.2]} 33. c4 {[%clk 0:00:03.4]} 33... Qc8 {[%clk 0:00:19.8]} 34. c5 {[%clk
0:00:02.3]} 34... Rb8 {[%clk 0:00:20.1]} 35. Qd6 {[%clk 0:00:01.8]} 35... Rb2
{[%clk 0:00:18]} 0-1

[Event "*** SCC Grand Prix: Titled Tuesday Blitz"]
[Site "Chess.com"]
[Date "2020.06.09"]
[Round "5"]
[White "MoonlighT89"]
[Black "2007checkmate"]
[Result "1-0"]
[WhiteElo "2571"]
[BlackElo "2405"]
[TimeControl "180+1"]
[EndTime "9:56:37 PDT"]
[Termination "MoonlighT89 won by resignation"]

1. e4 {[%clk 0:03:00.9]} 1... e5 {[%clk 0:02:59.8]} 2. Nc3 {[%clk 0:03:00.1]}
2... Nc6 {[%clk 0:02:57.5]} 3. Bc4 {[%clk 0:03:00.2]} 3... Bc5 {[%clk
0:02:57.1]} 4. Nf3 {[%clk 0:03:00.4]} 4... Nf6 {[%clk 0:02:56.2]} 5. d3 {[%clk
0:03:00.7]} 5... d6 {[%clk 0:02:55.9]} 6. h3 {[%clk 0:03:00.4]} 6... h6 {[%clk
0:02:55.5]} 7. Be3 {[%clk 0:02:59.9]} 7... a6 {[%clk 0:02:49.3]} 8. Qd2 {[%clk
0:02:57.4]} 8... Be6 {[%clk 0:02:47.7]} 9. Bxe6 {[%clk 0:02:55]} 9... fxe6
{[%clk 0:02:48]} 10. Bxc5 {[%clk 0:02:55.9]} 10... dxc5 {[%clk 0:02:48.9]} 11.
a4 {[%clk 0:02:47.9]} 11... Qd6 {[%clk 0:02:48.4]} 12. Nd1 {[%clk 0:02:46]}
12... c4 {[%clk 0:02:45.2]} 13. Ne3 {[%clk 0:02:42.4]} 13... cxd3 {[%clk
0:02:45]} 14. Qxd3 {[%clk 0:02:40.5]} 14... Qxd3 {[%clk 0:02:41.9]} 15. cxd3
{[%clk 0:02:39.9]} 15... O-O-O {[%clk 0:02:42.8]} 16. Ke2 {[%clk 0:02:38.7]}
16... Nh5 {[%clk 0:02:22.1]} 17. g3 {[%clk 0:02:35.5]} 17... Rhf8 {[%clk
0:02:21.7]} 18. Nc4 {[%clk 0:02:15.4]} 18... Nd4+ {[%clk 0:02:15.9]} 19. Nxd4
{[%clk 0:02:14.4]} 19... exd4 {[%clk 0:02:16.8]} 20. Rac1 {[%clk 0:02:09.6]}
20... Kb8 {[%clk 0:02:13.9]} 21. b4 {[%clk 0:02:06.4]} 21... Nf6 {[%clk
0:01:57.9]} 22. b5 {[%clk 0:01:55.3]} 22... axb5 {[%clk 0:01:48]} 23. axb5
{[%clk 0:01:56.2]} 23... Nd7 {[%clk 0:01:48.4]} 24. Ra1 {[%clk 0:01:50.8]} 24...
b6 {[%clk 0:01:48]} 25. f4 {[%clk 0:01:26.2]} 25... Kb7 {[%clk 0:01:45.8]} 26.
Nd2 {[%clk 0:01:17.9]} 26... e5 {[%clk 0:01:37.4]} 27. f5 {[%clk 0:01:14.5]}
27... Ra8 {[%clk 0:01:33.1]} 28. g4 {[%clk 0:01:13.6]} 28... Ra5 {[%clk
0:01:24.3]} 29. Rxa5 {[%clk 0:01:11.9]} 29... bxa5 {[%clk 0:01:25.2]} 30. Ra1
{[%clk 0:01:09.7]} 30... Ra8 {[%clk 0:01:25]} 31. Nc4 {[%clk 0:01:07]} 31... a4
{[%clk 0:01:25.2]} 32. Ra3 {[%clk 0:01:06.2]} 32... c6 {[%clk 0:01:17.7]} 33.
bxc6+ {[%clk 0:01:01.8]} 33... Kxc6 {[%clk 0:01:18.6]} 34. h4 {[%clk 0:01:02.6]}
34... Kb5 {[%clk 0:01:16.5]} 35. Ra1 {[%clk 0:00:56.8]} 35... Kb4 {[%clk
0:01:04.4]} 36. Kd2 {[%clk 0:00:27.2]} 36... Nc5 {[%clk 0:01:03.1]} 37. Kc2
{[%clk 0:00:26.4]} 37... Nd7 {[%clk 0:00:38.3]} 38. Rb1+ {[%clk 0:00:24.1]}
38... Kc5 {[%clk 0:00:38.5]} 39. Rb7 {[%clk 0:00:23.8]} 39... Kc6 {[%clk
0:00:30.2]} 40. Rxd7 {[%clk 0:00:22.1]} 40... a3 {[%clk 0:00:27.9]} 41. Rd6+
{[%clk 0:00:20.7]} 41... Kc5 {[%clk 0:00:27.5]} 42. Kb1 {[%clk 0:00:17.4]} 42...
Rb8+ {[%clk 0:00:26.6]} 43. Ka2 {[%clk 0:00:17.3]} 43... Rb4 {[%clk 0:00:26.4]}
44. Rd5+ {[%clk 0:00:17]} 44... Kc6 {[%clk 0:00:25.7]} 45. Rxe5 {[%clk
0:00:17.9]} 1-0

[Event "*** SCC Grand Prix: Titled Tuesday Blitz"]
[Site "Chess.com"]
[Date "2020.06.09"]
[Round "5"]
[White "ChronicUnhappiness"]
[Black "Harsha_Bharathakoti"]
[Result "0-1"]
[WhiteElo "2314"]
[BlackElo "2743"]
[TimeControl "180+1"]
[EndTime "9:56:37 PDT"]
[Termination "Harsha_Bharathakoti won on time"]

1. c4 {[%clk 0:03:00.9]} 1... e6 {[%clk 0:02:59.9]} 2. Nf3 {[%clk 0:02:59.8]}
2... d5 {[%clk 0:03:00.3]} 3. e3 {[%clk 0:02:59.6]} 3... Nf6 {[%clk 0:03:00.8]}
4. Nc3 {[%clk 0:02:59.6]} 4... b6 {[%clk 0:03:01.4]} 5. b3 {[%clk 0:02:56.9]}
5... Bb7 {[%clk 0:03:02]} 6. Bb2 {[%clk 0:02:57.2]} 6... Nbd7 {[%clk 0:03:02.7]}
7. d4 {[%clk 0:02:49.8]} 7... a6 {[%clk 0:03:02.7]} 8. Bd3 {[%clk 0:02:49.6]}
8... Bd6 {[%clk 0:03:03]} 9. O-O {[%clk 0:02:49.6]} 9... O-O {[%clk 0:03:03.7]}
10. Qe2 {[%clk 0:02:33.9]} 10... Ne4 {[%clk 0:03:03.4]} 11. Rac1 {[%clk
0:02:09]} 11... Qe7 {[%clk 0:03:03.1]} 12. Rfd1 {[%clk 0:02:06.9]} 12... f5
{[%clk 0:03:03.1]} 13. Nd2 {[%clk 0:01:39.6]} 13... Rf6 {[%clk 0:02:56.9]} 14.
Nf1 {[%clk 0:01:20.2]} 14... Rh6 {[%clk 0:02:52.9]} 15. f3 {[%clk 0:01:18]}
15... Qh4 {[%clk 0:01:19]} 16. f4 {[%clk 0:01:01]} 16... Ndf6 {[%clk 0:01:13.2]}
17. Bxe4 {[%clk 0:00:53.5]} 17... fxe4 {[%clk 0:01:12.5]} 18. c5 {[%clk
0:00:33.9]} 18... Be7 {[%clk 0:01:03.8]} 19. cxb6 {[%clk 0:00:25.5]} 19... cxb6
{[%clk 0:01:04.7]} 20. Na4 {[%clk 0:00:24.7]} 20... Bd8 {[%clk 0:01:05.4]} 21.
Ba3 {[%clk 0:00:19.8]} 21... Ne8 {[%clk 0:01:03.7]} 22. g3 {[%clk 0:00:17.8]}
22... Qh3 {[%clk 0:01:01.1]} 23. Rc2 {[%clk 0:00:14.3]} 23... Rf6 {[%clk
0:01:01.3]} 24. Rdc1 {[%clk 0:00:13.7]} 24... Rf7 {[%clk 0:01:01.9]} 25. Qg2
{[%clk 0:00:10.1]} 25... Qxg2+ {[%clk 0:01:00.8]} 26. Kxg2 {[%clk 0:00:10]}
26... a5 {[%clk 0:01:01.6]} 27. Kf2 {[%clk 0:00:09.5]} 27... Ba6 {[%clk
0:01:01.2]} 28. Nd2 {[%clk 0:00:08.2]} 28... Bb5 {[%clk 0:01:00.8]} 29. Rc8
{[%clk 0:00:07.5]} 29... Rfa7 {[%clk 0:00:59.4]} 30. Rxa8 {[%clk 0:00:06.1]}
30... Rxa8 {[%clk 0:00:59.2]} 31. Ke1 {[%clk 0:00:06.1]} 31... Kf7 {[%clk
0:00:58.9]} 32. Nb1 {[%clk 0:00:06.3]} 32... Bd7 {[%clk 0:00:54]} 33. Nac3
{[%clk 0:00:05.5]} 33... g5 {[%clk 0:00:52.4]} 34. Ne2 {[%clk 0:00:04.4]} 34...
gxf4 {[%clk 0:00:52.4]} 35. Nxf4 {[%clk 0:00:04.2]} 35... Ng7 {[%clk 0:00:53.1]}
36. Kf2 {[%clk 0:00:03.4]} 36... Nf5 {[%clk 0:00:53.7]} 37. Nc3 {[%clk
0:00:02.4]} 37... Rc8 {[%clk 0:00:54.4]} 38. Na4 {[%clk 0:00:02]} 38... Rxc1
{[%clk 0:00:55]} 39. Bxc1 {[%clk 0:00:02.7]} 39... Bc7 {[%clk 0:00:54.2]} 40.
Bd2 {[%clk 0:00:02.8]} 40... Bc6 {[%clk 0:00:52.5]} 41. Bc3 {[%clk 0:00:02.7]}
41... Ne7 {[%clk 0:00:51.8]} 42. Ke2 {[%clk 0:00:02.2]} 42... Bb5+ {[%clk
0:00:52.1]} 43. Kf2 {[%clk 0:00:02.2]} 43... Nf5 {[%clk 0:00:47.5]} 44. Bd2
{[%clk 0:00:01.2]} 44... Bxa4 {[%clk 0:00:42.2]} 0-1

[Event "*** SCC Grand Prix: Titled Tuesday Blitz"]
[Site "Chess.com"]
[Date "2020.06.09"]
[Round "5"]
[White "GaboSalazar2001"]
[Black "Aygehovit1992"]
[Result "0-1"]
[WhiteElo "2275"]
[BlackElo "2694"]
[TimeControl "180+1"]
[EndTime "9:56:38 PDT"]
[Termination "Aygehovit1992 won by resignation"]

1. e4 {[%clk 0:03:00.9]} 1... d6 {[%clk 0:02:59.8]} 2. d4 {[%clk 0:03:00.7]}
2... g6 {[%clk 0:02:58.3]} 3. Nc3 {[%clk 0:03:01.3]} 3... Bg7 {[%clk 0:02:58.6]}
4. h4 {[%clk 0:03:01.7]} 4... h5 {[%clk 0:02:58.5]} 5. Bg5 {[%clk 0:03:00.3]}
5... c6 {[%clk 0:02:58.3]} 6. Nf3 {[%clk 0:02:55.9]} 6... Bg4 {[%clk 0:02:57.8]}
7. Be2 {[%clk 0:02:55.3]} 7... Nd7 {[%clk 0:02:57.5]} 8. Qd3 {[%clk 0:02:49.3]}
8... b5 {[%clk 0:02:55.9]} 9. a3 {[%clk 0:02:49.1]} 9... a5 {[%clk 0:02:53.6]}
10. O-O {[%clk 0:02:46.1]} 10... Qb6 {[%clk 0:02:36.6]} 11. d5 {[%clk
0:02:10.2]} 11... Bxf3 {[%clk 0:02:34.7]} 12. Qxf3 {[%clk 0:02:04.3]} 12... Ne5
{[%clk 0:02:21.7]} 13. Qe3 {[%clk 0:02:04.3]} 13... Qxe3 {[%clk 0:02:14.9]} 14.
Bxe3 {[%clk 0:02:05.2]} 14... Nc4 {[%clk 0:01:34.3]} 15. dxc6 {[%clk 0:02:05.2]}
15... Rc8 {[%clk 0:01:12.4]} 16. Nxb5 {[%clk 0:01:52.6]} 16... Rxc6 {[%clk
0:01:11.8]} 17. Bd4 {[%clk 0:01:38.2]} 17... Bxd4 {[%clk 0:00:59.9]} 18. Nxd4
{[%clk 0:01:39.1]} 18... Rc8 {[%clk 0:01:00.3]} 19. b4 {[%clk 0:01:33.8]} 19...
Nf6 {[%clk 0:00:56.8]} 20. Bd3 {[%clk 0:01:25.2]} 20... Kd7 {[%clk 0:00:38.1]}
21. b5 {[%clk 0:01:21.4]} 21... Nb6 {[%clk 0:00:25.9]} 22. a4 {[%clk 0:01:14.2]}
22... Rc3 {[%clk 0:00:16.9]} 23. Nb3 {[%clk 0:01:06.5]} 23... Ra8 {[%clk
0:00:15.9]} 24. Rfd1 {[%clk 0:01:04.6]} 24... Ng4 {[%clk 0:00:15.3]} 25. f4
{[%clk 0:00:34.8]} 25... f6 {[%clk 0:00:14.7]} 26. Nd4 {[%clk 0:00:20.2]} 26...
Ne3 {[%clk 0:00:14.3]} 27. Rd2 {[%clk 0:00:19.3]} 27... Nec4 {[%clk 0:00:14.6]}
28. Rf2 {[%clk 0:00:14.8]} 28... Nb2 {[%clk 0:00:14.5]} 29. Ne2 {[%clk
0:00:12.4]} 29... Nxd3 {[%clk 0:00:12.4]} 30. Nxc3 {[%clk 0:00:12.6]} 30... Nxf2
{[%clk 0:00:12.1]} 31. Kxf2 {[%clk 0:00:13]} 31... Rc8 {[%clk 0:00:12.9]} 32.
Ra3 {[%clk 0:00:13.3]} 32... Nc4 {[%clk 0:00:12.5]} 33. Rb3 {[%clk 0:00:13.6]}
33... Nd2 {[%clk 0:00:12.8]} 34. Ra3 {[%clk 0:00:12.8]} 34... Rxc3 {[%clk
0:00:12.9]} 35. Rxc3 {[%clk 0:00:12.5]} 35... Nxe4+ {[%clk 0:00:13.1]} 36. Ke3
{[%clk 0:00:12.8]} 36... Nxc3 {[%clk 0:00:14]} 37. Kd4 {[%clk 0:00:13.3]} 37...
Nxa4 {[%clk 0:00:14.5]} 38. Kc4 {[%clk 0:00:13.8]} 38... Nb6+ {[%clk 0:00:14.7]}
39. Kd4 {[%clk 0:00:13.6]} 39... e5+ {[%clk 0:00:14.4]} 0-1

[Event "*** SCC Grand Prix: Titled Tuesday Blitz"]
[Site "Chess.com"]
[Date "2020.06.09"]
[Round "5"]
[White "chessplayer9919"]
[Black "theblitzchamp"]
[Result "0-1"]
[WhiteElo "2519"]
[BlackElo "2696"]
[TimeControl "180+1"]
[EndTime "9:56:38 PDT"]
[Termination "theblitzchamp won on time"]

1. d4 {[%clk 0:03:00.9]} 1... Nf6 {[%clk 0:02:59.9]} 2. c4 {[%clk 0:03:01]} 2...
g6 {[%clk 0:03:00.4]} 3. Nc3 {[%clk 0:03:01.4]} 3... Bg7 {[%clk 0:03:00.4]} 4.
e3 {[%clk 0:03:01.7]} 4... O-O {[%clk 0:02:59.9]} 5. Nf3 {[%clk 0:03:00.5]} 5...
d5 {[%clk 0:02:59.4]} 6. cxd5 {[%clk 0:02:57.4]} 6... Nxd5 {[%clk 0:02:59.3]} 7.
Bc4 {[%clk 0:02:57.6]} 7... Nxc3 {[%clk 0:02:57.6]} 8. bxc3 {[%clk 0:02:58.5]}
8... b6 {[%clk 0:02:58.1]} 9. O-O {[%clk 0:02:56.2]} 9... Bb7 {[%clk 0:02:58.6]}
10. a4 {[%clk 0:02:52.2]} 10... Nd7 {[%clk 0:02:58]} 11. a5 {[%clk 0:02:50.7]}
11... Rc8 {[%clk 0:02:55.1]} 12. Ba3 {[%clk 0:02:36.7]} 12... c5 {[%clk
0:02:44.3]} 13. Bb5 {[%clk 0:02:27.5]} 13... Qc7 {[%clk 0:01:45]} 14. axb6
{[%clk 0:02:14.3]} 14... axb6 {[%clk 0:01:43.8]} 15. Qe2 {[%clk 0:02:09.2]}
15... Nf6 {[%clk 0:01:37.9]} 16. Bb2 {[%clk 0:01:51.9]} 16... Rfd8 {[%clk
0:01:37]} 17. Ra7 {[%clk 0:01:45.8]} 17... Ra8 {[%clk 0:01:30.9]} 18. Rfa1
{[%clk 0:01:45.3]} 18... Rxa7 {[%clk 0:01:30.8]} 19. Rxa7 {[%clk 0:01:46.2]}
19... Qb8 {[%clk 0:01:31.1]} 20. Ra1 {[%clk 0:01:41.9]} 20... h5 {[%clk
0:01:31.4]} 21. Bc4 {[%clk 0:01:30.9]} 21... e6 {[%clk 0:01:21.9]} 22. h3 {[%clk
0:01:27.5]} 22... Ne4 {[%clk 0:01:17]} 23. Ba6 {[%clk 0:01:15.2]} 23... Bc6
{[%clk 0:01:12.9]} 24. Bb5 {[%clk 0:01:02.1]} 24... Qb7 {[%clk 0:01:08.9]} 25.
Bxc6 {[%clk 0:00:57.1]} 25... Qxc6 {[%clk 0:01:09.8]} 26. Ne1 {[%clk 0:00:37.3]}
26... Nd6 {[%clk 0:01:01.9]} 27. Nc2 {[%clk 0:00:20.1]} 27... Nf5 {[%clk
0:00:55.3]} 28. Na3 {[%clk 0:00:14.4]} 28... Nh4 {[%clk 0:00:54.7]} 29. f3
{[%clk 0:00:13.1]} 29... Nf5 {[%clk 0:00:54.6]} 30. e4 {[%clk 0:00:04.9]} 30...
Ne7 {[%clk 0:00:40.8]} 31. Rd1 {[%clk 0:00:02.1]} 31... Qa4 {[%clk 0:00:32.8]}
32. Qc2 {[%clk 0:00:01.4]} 32... Qa5 {[%clk 0:00:25.2]} 33. e5 {[%clk
0:00:01.5]} 33... Nd5 {[%clk 0:00:22.4]} 34. Nc4 {[%clk 0:00:01.5]} 34... Qa6
{[%clk 0:00:21.2]} 0-1